bitfinex/quotes_BTCUSD_20241211
["timestamp","ask_amount","ask_price","bid_price","bid_amount"]
[1733956571095,0.70100367,101350.0,101340.0,8.61e-05]
[1733956571368,0.60390658,101350.0,101340.0,8.61e-05]
[1733956571575,1.35837685,101350.0,101340.0,8.61e-05]
[1733956571992,1.35937685,101350.0,101340.0,8.61e-05]
[1733956572266,0.90287932,101350.0,101340.0,8.61e-05]
[1733956572503,0.90187932,101350.0,101340.0,8.61e-05]
[1733956572729,0.90287932,101350.0,101340.0,8.61e-05]
[1733956573343,1.35937685,101350.0,101340.0,8.61e-05]
[1733956573556,0.90287932,101350.0,101340.0,8.61e-05]
[1733956574170,0.90387932,101350.0,101340.0,8.61e-05]
[1733956575000,0.93833497,101350.0,101340.0,8.61e-05]
[1733956575207,0.90387932,101350.0,101340.0,8.61e-05]
[1733956576407,1.39723932,101350.0,101340.0,8.61e-05]
[1733956576617,1.85373685,101350.0,101340.0,8.61e-05]
[1733956579723,1.39688739,101350.0,101340.0,8.61e-05]
[1733956579930,1.85261983,101350.0,101340.0,8.61e-05]
[1733956580157,1.85261983,101350.0,101320.0,0.32221072]
[1733956580377,0.39679033,101330.0,101320.0,0.248689]
[1733956580606,0.71753785,101330.0,101320.0,0.39573244]
[1733956580826,0.6358714,101330.0,101320.0,0.39573244]
[1733956581702,0.6358714,101330.0,101320.0,0.39629323]
[1733956581902,0.8402454,101330.0,101320.0,0.27342651]
[1733956582110,0.8632454,101330.0,101320.0,0.27342651]
[1733956582318,0.95139102,101330.0,101320.0,0.19990479]
[1733956582522,0.75401702,101330.0,101320.0,0.34694823]
[1733956582741,0.75801702,101330.0,101320.0,0.34694823]
[1733956583552,0.75801702,101330.0,101320.0,0.19990479]
[1733956583764,0.75801702,101330.0,101320.0,0.27342651]
[1733956584609,0.75801702,101330.0,101320.0,0.15056079]
[1733956584827,0.95539102,101330.0,101320.0,0.22408251]
[1733956586741,0.75801702,101330.0,101320.0,0.27343051]
[1733956586923,0.96574049,101330.0,101320.0,0.27343051]
[1733956587156,0.96574049,101330.0,101320.0,0.22408251]
[1733956587371,0.96574049,101330.0,101320.0,0.22416861]
[1733956589256,0.96574049,101330.0,101320.0,0.15064689]
[1733956589463,0.96574049,101330.0,101320.0,0.22416861]
[1733956590422,0.96790222,101330.0,101320.0,0.22416861]
[1733956591462,0.96790222,101330.0,101320.0,0.07416861]
[1733956593532,0.96753125,101330.0,101320.0,0.07416861]
[1733956595719,0.96753125,101330.0,101320.0,0.00064689]
[1733956595920,0.96753125,101330.0,101320.0,0.07416861]
[1733956596561,1.04373125,101330.0,101320.0,0.07416861]
[1733956597648,0.97343539,101330.0,101320.0,0.00064689]
[1733956597847,1.06155374,101330.0,101320.0,0.00064689]
[1733956598027,1.09101618,101330.0,101320.0,0.00064689]
[1733956598231,0.87070318,101330.0,101320.0,0.00064689]
[1733956598476,0.91470318,101330.0,101320.0,0.00064689]
[1733956599289,1.00778875,101330.0,101320.0,0.00064689]
[1733956599492,1.50114875,101330.0,101320.0,0.00064689]
[1733956599701,0.220413,101310.0,101300.0,0.07365782]
[1733956599871,0.74664778,101310.0,101300.0,0.07371404]
[1733956600238,0.72579341,101310.0,101300.0,0.07371404]
[1733956600958,0.72779341,101310.0,101300.0,0.07371404]
[1733956601157,0.73079341,101310.0,101300.0,0.07371404]
[1733956601359,0.72779341,101310.0,101300.0,0.07371404]
[1733956601557,0.72579341,101310.0,101300.0,0.07371404]
[1733956601763,0.72679341,101310.0,101300.0,0.07371404]
[1733956601989,1.22015341,101310.0,101300.0,0.07371404]
[1733956602229,1.22015341,101310.0,101300.0,0.00019232]
[1733956602364,1.22015341,101310.0,101300.0,0.07371404]
[1733956602724,1.22002055,101310.0,101300.0,0.12307204]
[1733956602965,1.22002055,101310.0,101300.0,0.00019232]
[1733956603169,1.22002055,101310.0,101300.0,0.07371404]
[1733956603373,1.22002055,101310.0,101300.0,0.00019232]
[1733956603578,1.22002055,101310.0,101300.0,0.07371404]
[1733956604232,1.22002055,101310.0,101300.0,0.00019232]
[1733956604472,1.22002055,101310.0,101300.0,0.07371404]
[1733956606733,1.02260755,101310.0,101300.0,0.07371404]
[1733956606992,1.23020997,101310.0,101300.0,0.12307204]
[1733956607254,1.23019917,101310.0,101300.0,0.07371404]
[1733956608303,0.92192888,101310.0,101300.0,0.07352172]
[1733956609320,1.05404472,101310.0,101300.0,0.07352172]
[1733956611566,1.05404472,101310.0,101300.0,0.07360782]
[1733956611810,1.18645318,101310.0,101300.0,0.07360782]
[1733956612050,1.05433734,101310.0,101300.0,0.07360782]
[1733956613351,1.05730559,101310.0,101300.0,0.07360782]
[1733956613557,1.05730559,101310.0,101300.0,8.61e-05]
[1733956613772,1.05730559,101310.0,101300.0,0.07360782]
[1733956614505,1.23369414,101310.0,101300.0,0.07360782]
[1733956615000,1.32217796,101310.0,101300.0,0.07360782]
[1733956615234,1.23406641,101310.0,101300.0,0.07360782]
[1733956616191,1.01068516,101310.0,101300.0,0.27288754]
[1733956616430,0.69960493,101310.0,101300.0,0.27288754]
[1733956616875,0.61128464,101310.0,101300.0,0.32048754]
[1733956617824,1.15058464,101310.0,101300.0,0.32048754]
[1733956619355,1.05027619,101310.0,101300.0,0.32048754]
[1733956619622,0.40208177,101310.0,101300.0,1.00361171]
[1733956619843,0.24588177,101310.0,101300.0,1.07574561]
[1733956620055,0.06095877,101310.0,101300.0,0.90440171]
[1733956620285,0.02147677,101310.0,101300.0,1.1684251]
[1733956620740,0.00642677,101310.0,101300.0,1.1684251]
[1733956620966,0.0001722,101330.0,101320.0,0.4]
[1733956621191,2e-07,101330.0,101320.0,1.63727608]
[1733956621412,2e-07,101330.0,101320.0,0.96925915]
[1733956622347,0.00266646,101350.0,101340.0,0.52056516]
[1733956622562,0.00266646,101350.0,101340.0,0.90130161]
[1733956623007,0.00266646,101350.0,101340.0,0.68073645]
[1733956623288,0.00266646,101350.0,101340.0,0.90130161]
[1733956623511,0.00266646,101350.0,101340.0,0.91210161]
[1733956623742,0.00283294,101350.0,101340.0,0.91210161]
[1733956623949,0.00283294,101350.0,101340.0,0.78710861]
[1733956624161,0.00483294,101350.0,101340.0,0.78710861]
[1733956624596,0.00783294,101350.0,101340.0,0.78710861]
[1733956625255,0.00783294,101350.0,101340.0,0.79047505]
[1733956625475,0.00783294,101350.0,101340.0,0.68437805]
[1733956625691,0.00783294,101350.0,101340.0,0.79929905]
[1733956626155,0.00783294,101350.0,101340.0,0.79911481]
[1733956627248,0.00783294,101350.0,101340.0,0.32487476]
[1733956627459,0.00783294,101350.0,101340.0,0.43388536]
[1733956627669,0.00783294,101350.0,101340.0,0.42308536]
[1733956628625,0.00783294,101350.0,101340.0,0.59009536]
[1733956628838,0.00783294,101350.0,101340.0,0.57048536]
[1733956629060,0.00783294,101350.0,101340.0,0.42308536]
[1733956629484,0.00783294,101350.0,101340.0,0.44873246]
[1733956631660,0.00783294,101350.0,101340.0,0.42308536]
[1733956638873,0.08963294,101350.0,101340.0,0.42308536]
[1733956639086,0.00783294,101350.0,101340.0,0.42308536]
[1733956640712,0.00783294,101350.0,101340.0,0.2619658]
[1733956640917,0.00783294,101350.0,101340.0,0.3739316]
[1733956641140,0.00783294,101350.0,101340.0,0.4232696]
[1733956641580,0.13403294,101350.0,101340.0,0.4232696]
[1733956642401,0.13103294,101350.0,101340.0,0.4232696]
[1733956642807,0.13803294,101350.0,101340.0,0.4232696]
[1733956643231,0.13603294,101350.0,101340.0,0.4232696]
[1733956643633,0.13903294,101350.0,101340.0,0.4232696]
[1733956645035,0.13903294,101350.0,101340.0,0.4233557]
[1733956645231,0.13903294,101350.0,101340.0,0.34644686]
[1733956647832,0.33934139,101350.0,101340.0,0.0494241]
[1733956648063,0.36234139,101350.0,101340.0,0.19644686]
[1733956648280,0.55967639,101350.0,101340.0,8.61e-05]
[1733956648507,0.55967639,101350.0,101340.0,0.07359748]
[1733956648745,0.55967639,101350.0,101340.0,0.12293548]
[1733956648973,0.36234139,101350.0,101340.0,0.19644686]
[1733956649389,0.39182,101350.0,101340.0,0.34644686]
[1733956649597,0.39182,101350.0,101340.0,0.27293548]
[1733956649801,0.589155,101350.0,101340.0,0.27293548]
[1733956650084,0.55667639,101350.0,101340.0,0.27293548]
[1733956650290,0.54967639,101350.0,101340.0,0.27393548]
[1733956650508,0.55467639,101350.0,101340.0,0.27393548]
[1733956650717,0.54967639,101350.0,101340.0,0.27293548]
[1733956650922,0.54967639,101350.0,101340.0,0.1994241]
[1733956651122,0.55167639,101350.0,101340.0,0.22459748]
[1733956652613,0.55167639,101350.0,101340.0,0.07459748]
[1733956653806,1.09097639,101350.0,101340.0,0.07459748]
[1733956655831,1.09097639,101350.0,101340.0,0.0010861]
[1733956655832,0.55167639,101350.0,101340.0,0.0010861]
[1733956656460,0.1546,101330.0,101320.0,0.24869]
[1733956656609,0.1546,101330.0,101320.0,0.32220138]
[1733956656610,0.25490845,101330.0,101320.0,0.32220138]
[1733956657410,0.25490845,101330.0,101320.0,0.12285638]
[1733956657634,0.25790845,101330.0,101320.0,0.12285638]
[1733956658373,0.26490845,101330.0,101320.0,0.12285638]
[1733956658531,0.26490845,101330.0,101310.0,0.248701]
[1733956658532,0.1058,101320.0,101310.0,0.248701]
[1733956658731,0.1058,101320.0,101310.0,0.32221238]
[1733956658732,0.20610845,101320.0,101310.0,0.32221238]
[1733956659645,0.20710845,101320.0,101310.0,0.32221238]
[1733956660327,0.25890845,101320.0,101310.0,0.27286138]
[1733956660514,0.1058,101310.0,101300.0,0.12295148]
[1733956660724,0.20610845,101310.0,101300.0,0.19646286]
[1733956661794,0.20727481,101310.0,101300.0,0.34646286]
[1733956663292,0.25607481,101310.0,101300.0,0.34646286]
[1733956664366,0.45348781,101310.0,101300.0,0.22359748]
[1733956664572,0.45348781,101310.0,101300.0,0.27295548]
[1733956665589,0.45348781,101310.0,101300.0,0.12295548]
[1733956665590,0.25607481,101310.0,101300.0,0.12295548]
[1733956666437,0.45348781,101310.0,101300.0,8.61e-05]
[1733956666645,0.45348781,101310.0,101300.0,0.07359748]
[1733956666870,0.54154092,101310.0,101300.0,0.07359748]
[1733956667563,0.45348781,101310.0,101300.0,0.07359748]
[1733956669902,0.25607481,101310.0,101300.0,0.12295548]
[1733956680074,0.25607481,101310.0,101300.0,0.07359748]
[1733956680941,0.25607481,101310.0,101300.0,0.19646686]
[1733956681148,0.23307481,101310.0,101300.0,0.19646686]
[1733956681364,0.23307481,101310.0,101300.0,0.12295548]
[1733956685284,0.26249431,101310.0,101300.0,0.12295548]
[1733956685753,0.26249498,101310.0,101300.0,0.12295548]
[1733956686188,0.23307481,101310.0,101300.0,0.12295548]
[1733956686400,0.26250424,101310.0,101300.0,0.12295548]
[1733956687120,0.77237481,101310.0,101300.0,0.12295548]
[1733956690393,0.86025718,101310.0,101300.0,0.12295548]
[1733956691750,0.8603504,101310.0,101300.0,0.12295548]
[1733956691968,1.0807634,101310.0,101300.0,0.07359748]
[1733956692405,1.21272678,101310.0,101300.0,0.07359748]
[1733956692615,1.01531378,101310.0,101300.0,0.07359748]
[1733956693051,0.47601378,101310.0,101300.0,0.07359748]
[1733956693560,0.65196496,101310.0,101300.0,0.07359748]
[1733956694869,0.84937796,101310.0,101300.0,8.61e-05]
[1733956695106,0.87190394,101310.0,101300.0,0.07359748]
[1733956695766,1.06931694,101310.0,101300.0,0.07359748]
[1733956696647,0.87190394,101310.0,101300.0,0.12295548]
[1733956697090,0.87190394,101310.0,101300.0,0.07359748]
[1733956698260,0.87190394,101310.0,101300.0,0.12295548]
[1733956698441,0.87190394,101310.0,101300.0,0.0494441]
[1733956698693,0.87190394,101310.0,101300.0,0.12295548]
[1733956698939,0.84890394,101310.0,101300.0,0.12295548]
[1733956701100,0.85014361,101310.0,101300.0,0.12295548]
[1733956701502,0.76199093,101310.0,101300.0,0.12295548]
[1733956702046,1.30129093,101310.0,101300.0,0.12295548]
[1733956703535,1.1690619,101310.0,101300.0,0.12295548]
[1733956703747,1.3896432,101310.0,101300.0,0.12295548]
[1733956703958,1.16926148,101310.0,101300.0,0.12295548]
[1733956704394,0.39805303,101310.0,101300.0,0.34646686]
[1733956704660,0.00116636,101310.0,101300.0,0.43077824]
[1733956705328,0.00116636,101310.0,101300.0,0.51928775]
[1733956705537,0.00116636,101310.0,101300.0,0.43077824]
[1733956706694,0.00116636,101310.0,101300.0,0.68108669]
[1733956707118,0.00016636,101310.0,101300.0,0.68108669]
[1733956708192,3.6e-07,101310.0,101300.0,1.06590116]
[1733956708410,0.00100036,101310.0,101300.0,0.83208616]
[1733956708673,0.00100036,101310.0,101300.0,1.12092916]
[1733956708890,0.00100036,101310.0,101300.0,1.14655176]
[1733956709124,0.00100036,101310.0,101300.0,1.11992916]
[1733956709404,3.6e-07,101310.0,101300.0,1.08773876]
[1733956709593,3.6e-07,101310.0,101300.0,0.94621827]
[1733956709880,3.6e-07,101310.0,101300.0,1.07898254]
[1733956711409,3.6e-07,101310.0,101300.0,0.94621827]
[1733956711885,3.6e-07,101310.0,101300.0,1.28293282]
[1733956712569,3.6e-07,101310.0,101300.0,1.10591379]
[1733956714413,3.6e-07,101310.0,101300.0,0.97314952]
[1733956714903,3.6e-07,101310.0,101300.0,0.94733619]
[1733956715152,3.6e-07,101310.0,101300.0,0.92040494]
[1733956716336,3.6e-07,101310.0,101300.0,0.83208616]
[1733956719208,3.6e-07,101310.0,101300.0,0.16155255]
[1733956719415,3.6e-07,101310.0,101300.0,0.19746686]
[1733956720055,3.6e-07,101310.0,101300.0,0.0504441]
[1733956720268,0.08060036,101310.0,101300.0,0.19646686]
[1733956720481,0.12630036,101310.0,101300.0,0.0494441]
[1733956720713,0.12930036,101310.0,101300.0,0.19646686]
[1733956721135,0.13630036,101310.0,101300.0,0.19646686]
[1733956721367,0.13330036,101310.0,101300.0,0.19646686]
[1733956721788,0.13330036,101310.0,101300.0,0.34646686]
[1733956722444,0.12630036,101310.0,101300.0,0.34646686]
[1733956722657,0.12730036,101310.0,101300.0,0.34646686]
[1733956722880,0.22760881,101310.0,101300.0,0.1994441]
[1733956723086,0.22760881,101310.0,101300.0,0.27295548]
[1733956723301,0.25060881,101310.0,101300.0,0.0494441]
[1733956723732,0.25060881,101310.0,101300.0,8.61e-05]
[1733956724205,0.17000881,101310.0,101260.0,0.18948847]
[1733956724423,0.17000881,101310.0,101290.0,0.07351138]
[1733956724424,0.22660845,101300.0,101290.0,0.07351138]
[1733956724636,0.22660845,101300.0,101290.0,0.29261438]
[1733956725829,0.22660845,101300.0,101290.0,0.12920146]
[1733956726039,0.22660845,101300.0,101290.0,0.07351138]
[1733956726248,0.23360845,101300.0,101290.0,0.14261438]
[1733956726881,0.23660845,101300.0,101290.0,0.14261438]
[1733956727807,0.0806,101280.0,101260.0,0.069125]
[1733956728054,0.18090845,101270.0,101260.0,0.21176038]
[1733956729286,0.18090845,101270.0,101260.0,0.138249]
[1733956729501,0.22660845,101270.0,101260.0,0.25063517]
[1733956729718,0.23360845,101270.0,101260.0,0.25063517]
[1733956729926,0.23660845,101270.0,101260.0,0.40063517]
[1733956730363,0.25960845,101270.0,101260.0,0.150166]
[1733956731540,0.79890845,101270.0,101260.0,0.000166]
[1733956731744,0.79890845,101270.0,101260.0,0.069294]
[1733956732896,0.79890845,101270.0,101260.0,0.219294]
[1733956733599,0.80897506,101270.0,101260.0,0.219294]
[1733956737015,0.80897506,101270.0,101260.0,0.21938]
[1733956740231,0.80897506,101270.0,101240.0,0.18144817]
[1733956740232,0.0784,101260.0,101240.0,0.18144817]
[1733956740496,0.17870845,101260.0,101240.0,0.25059017]
[1733956740714,0.17870845,101260.0,101250.0,0.06913]
[1733956741600,0.17870845,101260.0,101250.0,0.18135017]
[1733956742511,0.17970845,101260.0,101250.0,0.33135017]
[1733956742931,0.18270845,101260.0,101250.0,0.33135017]
[1733956744362,0.18270845,101260.0,101250.0,0.21913]
[1733956745448,0.18270845,101260.0,101250.0,0.33135017]
[1733956747158,0.004,101260.0,101250.0,0.35691461]
[1733956747571,0.004,101260.0,101250.0,0.33135017]
[1733956748407,0.004,101260.0,101250.0,0.33143617]
[1733956751393,0.004,101260.0,101250.0,0.36650062]
[1733956758176,0.00385061,101260.0,101250.0,0.36650062]
[1733956760007,0.00402281,101260.0,101250.0,0.36650062]
[1733956762532,0.00402281,101260.0,101250.0,0.26650062]
[1733956763227,0.00402281,101260.0,101250.0,0.33563062]
[1733956772444,0.08412281,101260.0,101250.0,0.33563062]
[1733956773415,0.08412281,101260.0,101250.0,0.26198831]
[1733956773658,0.08412281,101260.0,101250.0,0.22364231]
[1733956774120,0.08412281,101260.0,101250.0,0.29277231]
[1733956783319,0.08412281,101260.0,101250.0,0.22364231]
[1733956783773,0.08412281,101260.0,101250.0,0.29277231]
[1733956784663,0.08412281,101260.0,101250.0,0.29285841]
[1733956791573,0.08412281,101260.0,101250.0,0.29036415]
[1733956792252,0.08412281,101260.0,101250.0,0.2192161]
[1733956792472,0.08412281,101260.0,101250.0,0.29285841]
[1733956792972,0.12982281,101260.0,101250.0,0.29285841]
[1733956793418,0.12982281,101260.0,101250.0,0.38154313]
[1733956793611,0.12982281,101260.0,101250.0,0.51457021]
[1733956793859,0.12982281,101260.0,101250.0,0.38154313]
[1733956795447,0.12982281,101260.0,101250.0,0.38161299]
[1733956796371,0.12982281,101260.0,101250.0,0.38161401]
[1733956798658,0.12982281,101260.0,101250.0,0.51474742]
[1733956800455,0.08861929,101270.0,101250.0,0.83869818]
[1733956800737,0.00016673,101270.0,101260.0,0.37628862]
[1733956800987,0.00016673,101270.0,101260.0,0.52452038]
[1733956801242,0.00016673,101270.0,101260.0,0.43577075]
[1733956802187,0.00116673,101270.0,101260.0,0.30264631]
[1733956802411,0.00116673,101270.0,101260.0,0.37628862]
[1733956802632,0.00016673,101270.0,101260.0,0.37628862]
[1733956802887,0.00616673,101270.0,101260.0,0.37628862]
[1733956803141,0.00616673,101270.0,101260.0,0.47659707]
[1733956803396,7.3e-07,101270.0,101260.0,0.70023938]
[1733956803610,7.3e-07,101270.0,101260.0,0.8000188]
[1733956803879,0.26541169,101280.0,101270.0,0.72551982]
[1733956804121,0.06872556,101280.0,101270.0,0.94483074]
[1733956804369,0.09822997,101290.0,101280.0,0.3]
[1733956804579,0.01842997,101290.0,101280.0,0.62658107]
[1733956804771,0.01842997,101290.0,101280.0,0.70022338]
[1733956805048,9.7e-07,101290.0,101280.0,0.90746338]
[1733956805270,9.7e-07,101290.0,101280.0,0.70022338]
[1733956806009,9.7e-07,101290.0,101280.0,0.55293876]
[1733956806707,0.00200097,101290.0,101280.0,0.55293876]
[1733956806932,9.7e-07,101290.0,101280.0,1.12490438]
[1733956807160,9.7e-07,101290.0,101280.0,0.92137818]
[1733956807401,1.7e-07,101290.0,101280.0,0.92137818]
[1733956807632,1.7e-07,101290.0,101280.0,0.7886853]
[1733956808660,1.7e-07,101290.0,101280.0,1.07137765]
[1733956809163,0.000172,101300.0,101290.0,0.307271]
[1733956809164,1.7e-07,101300.0,101290.0,0.307271]
[1733956809422,1.7e-07,101300.0,101290.0,0.55293176]
[1733956809613,1.7e-07,101300.0,101290.0,0.65135349]
[1733956809861,1.7e-07,101300.0,101290.0,0.228981]
[1733956810070,1.7e-07,101300.0,101290.0,0.37626562]
[1733956811002,0.00200017,101300.0,101290.0,0.37626562]
[1733956819695,0.08100017,101300.0,101290.0,0.37626562]
[1733956820207,0.08100017,101300.0,101290.0,0.30262331]
[1733956820912,0.08100017,101300.0,101290.0,0.228981]
[1733956821098,0.08100017,101300.0,101290.0,0.30262331]
[1733956822073,0.12790017,101300.0,101290.0,0.30262331]
[1733956822745,0.22820862,101300.0,101290.0,0.30262331]
[1733956829741,0.22820862,101300.0,101290.0,0.30270931]
[1733956831612,0.2361853,101300.0,101290.0,0.30270931]
[1733956833493,0.13587685,101300.0,101290.0,0.37635162]
[1733956844746,0.00997685,101300.0,101290.0,0.37635162]
[1733956845898,0.00997685,101300.0,101290.0,0.229067]
[1733956846114,0.00997685,101300.0,101290.0,0.37635162]
[1733956846348,0.00997685,101300.0,101290.0,0.41583362]
[1733956847125,0.09077685,101300.0,101290.0,0.41583362]
[1733956853490,0.08715706,101300.0,101290.0,0.41583362]
[1733956854613,0.06741406,101300.0,101290.0,0.51614207]
[1733956854841,0.00527054,101300.0,101290.0,0.89280291]
[1733956855059,5.4e-07,101300.0,101290.0,0.86593991]
[1733956855278,0.049572,101310.0,101300.0,0.15]
[1733956855514,0.049572,101310.0,101300.0,0.37625762]
[1733956856655,0.05473891,101310.0,101300.0,0.37725762]
[1733956857523,0.05773891,101310.0,101300.0,0.37725762]
[1733956860669,0.05773891,101310.0,101300.0,0.229973]
[1733956860891,0.05773891,101310.0,101300.0,0.37725762]
[1733956861747,0.05773891,101310.0,101300.0,0.229973]
[1733956861979,0.05773891,101310.0,101300.0,0.37725762]
[1733956862831,0.05773891,101310.0,101300.0,0.38724745]
[1733956867607,0.13993891,101310.0,101300.0,0.37725762]
[1733956871256,0.00833891,101310.0,101300.0,0.53299993]
[1733956871508,0.00833891,101310.0,101300.0,0.45935762]
[1733956872479,0.00333891,101310.0,101300.0,0.45835762]
[1733956872717,0.00433891,101310.0,101300.0,0.45835762]
[1733956872933,0.00133891,101310.0,101300.0,0.45835762]
[1733956873384,0.00133891,101310.0,101300.0,0.53199993]
[1733956874555,0.04753891,101310.0,101300.0,0.228973]
[1733956874769,0.12973891,101310.0,101300.0,0.37634362]
[1733956878573,0.14753891,101310.0,101300.0,0.53854115]
[1733956878831,0.14753891,101310.0,101300.0,0.67137399]
[1733956879060,0.14753891,101310.0,101300.0,0.44998593]
[1733956879532,0.14753891,101310.0,101300.0,0.93709102]
[1733956879749,0.14753891,101310.0,101300.0,1.07000971]
[1733956880879,0.14753891,101310.0,101300.0,1.07023503]
[1733956881567,0.14753891,101310.0,101300.0,1.29523403]
[1733956881793,0.10133891,101310.0,101300.0,1.15243503]
[1733956882042,0.10133891,101310.0,101300.0,1.16234937]
[1733956883187,0.10133891,101310.0,101300.0,1.04761883]
[1733956883435,0.10133891,101310.0,101300.0,1.26913637]
[1733956883670,0.10133891,101310.0,101300.0,1.04761883]
[1733956884356,0.10133891,101310.0,101300.0,1.03770449]
[1733956885606,0.10133891,101310.0,101300.0,0.93087788]
[1733956885827,0.10133891,101310.0,101300.0,1.03588488]
[1733956886987,0.10133891,101310.0,101300.0,1.04599557]
[1733956888460,0.10133891,101310.0,101300.0,1.05454157]
[1733956888700,0.10133891,101310.0,101300.0,0.94098857]
[1733956888882,0.10133891,101310.0,101300.0,0.85878857]
[1733956889656,0.10133891,101310.0,101300.0,0.78514626]
[1733956890112,0.10133891,101310.0,101300.0,0.7851085]
[1733956892121,0.10133891,101310.0,101300.0,0.8871315]
[1733956892413,0.10133891,101310.0,101300.0,0.7851085]
[1733956893516,0.10133891,101310.0,101300.0,0.85875081]
[1733956893741,0.10133891,101310.0,101300.0,0.38167124]
[1733956893996,0.10133891,101310.0,101300.0,0.68157117]
[1733956894463,0.10133891,101310.0,101300.0,0.54868644]
[1733956894677,0.10133891,101310.0,101300.0,0.46009662]
[1733956894897,0.10133891,101310.0,101300.0,0.68159592]
[1733956896258,0.10133891,101310.0,101300.0,0.60795361]
[1733956897673,0.10133891,101310.0,101300.0,0.4505583]
[1733956897674,0.32844736,101310.0,101300.0,0.4505583]
[1733956897909,0.32844736,101310.0,101300.0,0.39130103]
[1733956898141,0.32844736,101310.0,101300.0,0.30270131]
[1733956898384,0.32844736,101310.0,101300.0,0.229059]
[1733956898610,0.32844736,101310.0,101300.0,0.37634362]
[1733956900459,0.86774736,101310.0,101300.0,0.37634362]
[1733956900924,0.86774736,101310.0,101300.0,0.30270131]
[1733956902986,1.08864972,101310.0,101300.0,0.229059]
[1733956903443,1.08864972,101310.0,101300.0,0.30270131]
[1733956903664,1.39791304,101310.0,101300.0,0.30270131]
[1733956904352,1.48622382,101310.0,101300.0,0.30270131]
[1733956904580,1.48922382,101310.0,101300.0,0.30270131]
[1733956905039,1.48822382,101310.0,101300.0,0.30270131]
[1733956905300,1.49322382,101310.0,101300.0,0.30370131]
[1733956905550,1.27232145,101310.0,101300.0,0.30370131]
[1733956906468,0.73302145,101310.0,101300.0,0.30370131]
[1733956906924,0.73302145,101310.0,101300.0,0.230059]
[1733956907159,0.73302145,101310.0,101300.0,0.30370131]
[1733956908569,0.74301839,101310.0,101300.0,0.30370131]
[1733956909263,0.5662965,101310.0,101300.0,0.30370131]
[1733956909509,1.1055965,101310.0,101300.0,0.30370131]
[1733956913237,1.10521548,101310.0,101300.0,0.30370131]
[1733956913461,0.97293277,101310.0,101300.0,0.30370131]
[1733956914835,0.8847443,101310.0,101300.0,0.30370131]
[1733956915294,0.8847443,101310.0,101300.0,0.37734362]
[1733956915548,0.3454443,101310.0,101300.0,0.37734362]
[1733956917944,0.16503585,101310.0,101300.0,0.45098593]
[1733956918168,0.15503891,101310.0,101300.0,0.45774362]
[1733956918632,0.10833891,101310.0,101300.0,0.45774362]
[1733956919982,0.10833891,101310.0,101300.0,0.45384362]
[1733956920436,0.10833891,101310.0,101300.0,0.45392962]
[1733956930197,0.10833891,101310.0,101300.0,0.37352962]
[1733956930661,0.15673891,101310.0,101300.0,0.37352962]
[1733956931624,0.33414736,101310.0,101300.0,0.226245]
[1733956931874,0.33414736,101310.0,101300.0,0.080059]
[1733956931875,0.89644736,101310.0,101300.0,0.080059]
[1733956932140,0.89644736,101310.0,101300.0,0.15370131]
[1733956932415,0.9845447,101310.0,101300.0,0.15370131]
[1733956933104,1.29288539,101310.0,101300.0,0.15370131]
[1733956933567,1.29288539,101310.0,101300.0,0.080059]
[1733956933813,1.11669071,101310.0,101300.0,0.080059]
[1733956934755,1.11675611,101310.0,101300.0,0.080059]
[1733956935240,1.29300311,101310.0,101300.0,0.080059]
[1733956936462,0.75370311,101310.0,101300.0,0.080059]
[1733956938622,0.97401187,101310.0,101300.0,0.080059]
[1733956939049,0.88588837,101310.0,101300.0,0.080059]
[1733956940259,0.97403501,101310.0,101300.0,0.080059]
[1733956943098,0.88588837,101310.0,101300.0,0.080059]
[1733956943544,0.75370312,101310.0,101300.0,0.080059]
[1733956944018,0.75397363,101310.0,101300.0,0.080059]
[1733956948563,0.7539181,101310.0,101300.0,0.080059]
[1733956949594,0.7459181,101310.0,101300.0,0.079059]
[1733956950053,0.7479181,101310.0,101300.0,0.088059]
[1733956952463,0.88015326,101310.0,101300.0,0.088059]
[1733956960797,1.03015326,101310.0,101300.0,0.009086]
[1733956961009,1.22756626,101310.0,101300.0,0.009086]
[1733956962389,1.22730336,101310.0,101300.0,0.009086]
[1733956962618,1.32422823,101310.0,101300.0,0.009086]
[1733956962841,1.25058592,101310.0,101300.0,0.009086]
[1733956963947,1.09511761,101310.0,101300.0,0.009086]
[1733956964177,0.96293186,101310.0,101300.0,0.009086]
[1733956969426,1.2603498,101310.0,101300.0,0.009086]
[1733956969657,0.96293186,101310.0,101300.0,0.009086]
[1733956971295,1.2603498,101310.0,101300.0,0.009086]
[1733956971520,1.1103498,101310.0,101300.0,0.009086]
[1733956971751,0.67587531,101300.0,101290.0,8.6e-05]
[1733956972019,1.01357891,101300.0,101290.0,8.6e-05]
[1733956972941,1.01357891,101300.0,101290.0,0.003086]
[1733956973394,1.01357891,101300.0,101290.0,8.6e-05]
[1733956973624,0.86457891,101300.0,101290.0,0.007]
[1733956973863,0.86557891,101300.0,101290.0,0.009]
[1733956974091,0.93922122,101300.0,101290.0,0.009]
[1733956975771,0.220452,101290.0,101280.0,0.0009891]
[1733956976003,0.220452,101290.0,101260.0,0.3891841]
[1733956976004,0.023,101270.0,101260.0,0.3080841]
[1733956976226,0.12330845,101270.0,101260.0,0.38172641]
[1733956976473,0.21144517,101270.0,101260.0,0.38172641]
[1733956976726,0.34365026,101270.0,101260.0,0.38172641]
[1733956977222,0.21344517,101270.0,101260.0,0.38189314]
[1733956977738,0.34565026,101270.0,101260.0,0.30825083]
[1733956978202,0.52192371,101270.0,101260.0,0.30825083]
[1733956978714,0.34565026,101270.0,101260.0,0.30825083]
[1733956979197,0.34365026,101270.0,101260.0,0.30825083]
[1733956979426,0.34565026,101270.0,101260.0,0.30825083]
[1733956979657,0.34665026,101270.0,101260.0,0.30825083]
[1733956980124,0.35265026,101270.0,101260.0,0.15825083]
[1733956980858,0.52892371,101270.0,101260.0,0.15825083]
[1733956981585,0.35265026,101270.0,101260.0,0.15825083]
[1733956982762,0.76072371,101270.0,101260.0,0.07925083]
[1733956983219,0.77083294,101270.0,101260.0,0.07925083]
[1733956983703,0.59455949,101270.0,101260.0,0.07925083]
[1733956984173,0.59422218,101270.0,101260.0,0.07925083]
[1733956986024,0.66758477,101270.0,101260.0,0.07925083]
[1733956986251,0.63992218,101270.0,101260.0,0.07925083]
[1733956986472,0.83741318,101270.0,101260.0,0.07925083]
[1733956988773,0.83725078,101270.0,101260.0,0.07925083]
[1733956988985,0.83425078,101270.0,101260.0,0.07925083]
[1733956989227,0.83525078,101270.0,101260.0,0.07925083]
[1733956989667,0.69734552,101270.0,101260.0,0.07925083]
[1733956989901,0.69734552,101270.0,101260.0,0.00025283]
[1733956990149,0.69834552,101270.0,101260.0,0.00025283]
[1733956991535,0.83025078,101270.0,101260.0,0.00025283]
[1733956994043,0.83025078,101270.0,101250.0,0.2371101]
[1733956994266,0.12330845,101260.0,101250.0,0.1581021]
[1733956999687,0.66260845,101260.0,101250.0,0.1581021]
[1733957001701,0.76260845,101260.0,101250.0,0.1581021]
[1733957006135,0.76260845,101260.0,101250.0,8.61e-05]
[1733957006136,0.73383217,101260.0,101250.0,8.61e-05]
[1733957006368,1.04152669,101260.0,101250.0,8.61e-05]